bitfinex-derivatives/quotes_SOLF0:USTF0_20241011
["timestamp","ask_amount","ask_price","bid_price","bid_amount"]
[1728638032997,11.1487,141.79,141.77,5.34462029]
[1728638033198,11.1487,141.79,141.76,3.5293]
[1728638033401,11.1487,141.79,141.77,5.34489568]
[1728638033600,11.1487,141.79,141.76,3.5293]
[1728638033904,11.1487,141.79,141.77,5.34504826]
[1728638034110,11.1487,141.79,141.76,3.5293]
[1728638034402,11.1487,141.79,141.77,5.34531797]
[1728638034605,11.1487,141.79,141.76,3.5293]
[1728638034811,11.1487,141.79,141.77,5.34531796]
[1728638035004,11.1487,141.79,141.76,3.5293]
[1728638035205,11.1487,141.79,141.77,5.34565248]
[1728638035602,11.1487,141.79,141.76,3.5293]
[1728638035808,3.5287,141.79,141.77,5.34571432]
[1728638036009,3.5287,141.79,141.76,3.5293]
[1728638036210,3.5287,141.79,141.77,5.34601636]
[1728638036413,3.5287,141.79,141.76,3.5293]
[1728638036608,3.5287,141.79,141.77,5.34608057]
[1728638036911,3.5287,141.79,141.76,3.5293]
[1728638037111,3.5287,141.79,141.77,5.34585362]
[1728638037312,3.5287,141.79,141.76,3.5293]
[1728638037513,3.5287,141.79,141.77,5.3462352]
[1728638037708,3.5287,141.79,141.75,7.62]
[1728638037915,3.5287,141.79,141.77,3.5291]
[1728638038415,3.5287,141.79,141.75,7.62]
[1728638038620,3.5287,141.79,141.76,3.5291]
[1728638038815,3.5287,141.79,141.76,8.87632566]
[1728638039009,3.5287,141.79,141.77,5.34722566]
[1728638039308,3.5287,141.79,141.76,3.5291]
[1728638039513,3.5287,141.79,141.77,5.34758068]
[1728638039705,3.5287,141.79,141.76,3.5291]
[1728638039905,3.5287,141.79,141.77,5.34709434]
[1728638040114,3.5287,141.79,141.76,3.5291]
[1728638040315,3.5287,141.79,141.77,5.34704675]
[1728638040513,3.5287,141.79,141.76,3.5291]
[1728638040714,3.5287,141.79,141.77,5.34738848]
[1728638040914,3.5287,141.79,141.76,3.5291]
[1728638041214,3.5287,141.79,141.77,8.87648798]
[1728638041519,3.5287,141.79,141.77,3.5291]
[1728638046123,5.10502,141.83,141.78,5.3471077]
[1728638046326,0.12502,141.83,141.79,7.62]
[1728638046524,3.65272,141.83,141.8,11.1481]
[1728638047823,3.5279,141.82,141.8,7.62]
[1728638048221,0.12502,141.83,141.8,7.62]
[1728638048621,3.5279,141.82,141.79,3.5285]
[1728638048924,3.5279,141.82,141.8,7.62]
[1728638050319,0.12502,141.83,141.81,16.4883629]
[1728638050528,0.12502,141.83,141.82,12.9602629]
[1728638051322,4.94,141.88,141.82,12.9602629]
[1728638051626,7.62,141.87,141.82,7.62]
[1728638051925,7.74502,141.89,141.85,7.62]
[1728638052130,7.74502,141.89,141.82,4.94]
[1728638052131,0.12502,141.89,141.87,7.62]
[1728638052320,0.12502,141.89,141.84,4.94]
[1728638052523,0.12502,141.89,141.85,5.32697552]
[1728638052717,0.12502,141.89,141.84,12.56]
[1728638053025,0.12502,141.89,141.85,11.45361085]
[1728638053224,0.12502,141.89,141.87,7.62]
[1728638053621,0.12502,141.89,141.87,11.1465]
[1728638054527,0.12502,141.89,141.88,3.5263]
[1728638055123,1.3153,141.93,141.88,3.5263]
[1728638055124,0.12502,141.95,141.88,7.62]
[1728638055322,0.12502,141.95,141.9,3.5257]
[1728638055527,3.5253,141.93,141.89,7.62]
[1728638056324,7.62,141.94,141.89,7.62]
[1728638056525,11.1449,141.94,141.89,7.62]
[1728638056928,3.5252,141.93,141.89,3.5261]
[1728638057129,3.5252,141.93,141.89,7.62]
[1728638057331,0.12502,141.95,141.87,4.92]
[1728638057630,0.12502,141.95,141.9,7.62]
[1728638057823,7.62,141.94,141.91,3.5255]
[1728638058328,3.64982,141.95,141.91,3.5255]
[1728638058521,11.26982,141.95,141.91,3.5255]
[1728638059226,0.12502,141.95,141.94,3.5249]
[1728638059532,0.12502,141.95,141.91,7.62]
[1728638059930,0.12502,141.95,141.93,3.5249]
[1728638060126,0.12502,141.95,141.91,7.62]
[1728638060323,0.12502,141.95,141.92,3.5253]
[1728638060934,0.12502,141.95,141.94,3.5249]
[1728638061130,0.12502,141.95,141.91,7.62]
[1728638061324,0.12502,141.95,141.93,7.62]
[1728638063222,0.12502,141.95,141.94,3.5249]
[1728638064234,7.16882,142.07,141.93,12.54]
[1728638064431,3.5235,142.0,141.97,7.62]
[1728638065234,1.2867,142.05,141.97,7.62]
[1728638065439,3.64832,142.01,141.98,3.5238]
[1728638065639,0.12502,142.01,141.97,7.62]
[1728638065833,0.12502,142.01,141.98,3.5238]
[1728638066039,0.12502,142.01,141.97,7.62]
[1728638066235,0.12502,142.07,141.96,4.92]
[1728638066441,7.62,142.04,141.99,7.62]
[1728638066836,3.5228,142.03,141.98,3.5236]
[1728638067050,0.12502,142.07,141.99,7.62]
[1728638067234,7.62,142.05,141.99,7.62]
[1728638067634,3.5226,142.04,142.0,11.1433]
[1728638068034,3.5226,142.04,142.0,7.62]
[1728638068236,4.92,142.06,141.97,4.92]
[1728638068237,4.92,142.06,142.02,3.5228]
[1728638068539,12.54,142.06,142.02,3.5228]
[1728638068843,8.4421,142.06,142.02,3.5228]
[1728638069036,16.0621,142.06,142.02,3.5228]
[1728638069341,12.54,142.06,142.02,3.5228]
[1728638069741,16.0619,142.06,142.01,7.62]
[1728638070036,3.5219,142.06,142.03,11.1426]
[1728638070340,0.12502,142.07,142.05,7.62]
[1728638071338,0.12502,142.07,142.02,4.92]
[1728638071640,3.64682,142.07,142.03,11.1424]
[1728638072435,1.2948297,142.06,142.03,11.1424]
[1728638073644,3.64682,142.07,142.03,11.1424]
[1728638073838,3.5219,142.06,142.03,11.1424]
[1728638074047,0.12502,142.07,142.02,4.92]
[1728638074238,1.29484071,142.06,142.0,1.3413]
[1728638074439,3.5223,142.05,142.02,7.62]
[1728638075843,3.5219,142.06,142.03,7.62]
[1728638076942,0.12502,142.07,142.03,7.62]
[1728638077139,1.29489859,142.06,142.03,7.62]
[1728638077647,3.64682,142.07,142.04,3.5222]
[1728638077942,1.29482232,142.06,142.04,3.5222]
[1728638078147,3.64682,142.07,142.04,3.5222]
[1728638078339,1.29482349,142.06,142.04,3.5222]
[1728638079838,4.81672349,142.06,142.03,11.1425]
[1728638080039,3.5219,142.06,142.03,11.1425]
[1728638080241,0.12502,142.07,142.03,7.62]
[1728638080440,0.12502,142.07,142.05,7.62]
[1728638081040,3.64672,142.07,142.05,7.62]
[1728638081335,0.12502,142.07,142.05,7.62]
[1728638082047,0.12502,142.07,142.06,11.1419]
[1728638082249,0.12502,142.07,142.06,7.62]
[1728638085452,3.522,142.06,142.02,3.5228]
[1728638085648,0.12502,142.07,142.05,12.88]
[1728638086054,0.12502,142.07,142.05,5.26]
[1728638086546,0.12502,142.07,142.06,11.1419]
[1728638086748,0.12502,142.07,142.06,3.5219]
[1728638087056,7.74502,142.13,142.09,24.4787]
[1728638087244,7.74502,142.13,142.06,7.62]
[1728638087245,7.74502,142.13,142.08,12.88]
[1728638087648,3.5205,142.12,142.08,12.88]
[1728638087848,7.74502,142.13,142.08,12.88]
[1728638088254,0.12502,142.13,142.11,7.62]
[1728638088654,0.12502,142.13,142.1,7.62]
[1728638088856,3.64532,142.13,142.1,7.62]
[1728638089461,0.12502,142.13,142.11,3.5206]
[1728638089752,0.12502,142.13,142.1,7.62]
[1728638090150,0.12502,142.13,142.1,11.1408]
[1728638090346,0.12502,142.13,142.11,5.24]
[1728638090749,0.12502,142.13,142.11,8.7606]
[1728638091148,0.12502,142.13,142.11,12.86]
[1728638091353,0.12502,142.13,142.11,16.3806]
[1728638091657,0.12502,142.13,142.11,12.86]
[1728638091853,0.12502,142.13,142.11,5.24]
[1728638092248,0.12502,142.13,142.1,12.86]
[1728638092447,0.12502,142.13,142.11,3.5205]
[1728638092846,0.12502,142.13,142.12,7.62]
[1728638093356,0.12502,142.13,142.1,5.24]
[1728638093555,0.12502,142.13,142.1,12.86]
[1728638093858,3.64522,142.13,142.1,12.86]
[1728638094748,0.12502,142.13,142.1,12.86]
[1728638094953,0.12502,142.13,142.1,16.3807]
[1728638095149,0.12502,142.13,142.12,7.62]
[1728638096160,0.12502,142.13,142.11,12.86]
[1728638096760,0.12502,142.13,142.11,16.3806]
[1728638098050,0.12502,142.13,142.11,12.86]
[1728638099352,0.12502,142.13,142.1,7.62]
[1728638099659,0.12502,142.13,142.1,12.86]
[1728638100562,0.12502,142.13,142.11,7.62]
[1728638101460,3.64522,142.13,142.11,7.62]
[1728638101662,3.64522,142.13,142.1,8.7609]
[1728638101857,3.64522,142.13,142.1,12.86]
[1728638102054,7.74502,142.13,142.08,5.24]
[1728638102256,7.62,142.11,142.06,7.62]
[1728638103747,3.5213,142.09,142.06,7.62]
[1728638104116,3.5213,142.09,142.07,7.62]
[1728638104363,3.5209,142.1,142.08,7.62]
[1728638105064,3.5208,142.11,142.08,11.1412]
[1728638105458,0.12502,142.13,142.1,7.62]
[1728638105658,1.29439603,142.12,142.11,7.62]
[1728638106062,1.29431077,142.12,142.11,7.62]
[1728638106263,3.64522,142.13,142.11,7.62]
[1728638106264,0.12502,142.13,142.11,11.1406]
[1728638106463,0.12502,142.13,142.11,7.62]
[1728638106757,3.64522,142.13,142.11,7.62]
[1728638106961,0.12502,142.13,142.12,7.62]
[1728638107162,0.12502,142.13,142.12,11.1404]
[1728638107765,0.12502,142.13,142.12,7.62]
[1728638108962,3.64512,142.13,142.11,7.62]
[1728638109665,0.12502,142.13,142.12,3.5204]
[1728638109867,0.12502,142.13,142.12,11.1404]
[1728638110057,0.12502,142.13,142.09,2.6835]
[1728638110259,0.12502,142.13,142.12,7.62]
[1728638110470,0.12502,142.13,141.97,76.08]
[1728638110657,7.74502,142.13,142.08,7.62]
[1728638111158,0.12502,142.13,142.08,7.62]
[1728638111361,7.74502,142.13,142.08,7.62]
[1728638111561,7.74502,142.13,142.09,7.62]
[1728638111756,0.12502,142.13,142.11,7.62]
[1728638112562,3.64522,142.13,142.11,7.62]
[1728638112962,0.12502,142.13,142.07,5.46]
[1728638113262,0.12502,142.13,142.1,7.62]
[1728638113466,0.12502,142.13,142.11,7.62]
[1728638113860,0.12502,142.13,142.1,7.62]
[1728638114067,3.64542,142.13,142.1,7.62]
[1728638114566,0.12502,142.13,142.1,7.62]
[1728638114770,3.64532,142.13,142.1,11.1407]
[1728638115067,3.64532,142.13,142.1,7.62]
[1728638115571,3.64532,142.13,142.11,7.62]
[1728638116859,0.12502,142.13,142.11,11.1405]
[1728638117058,0.12502,142.13,142.12,7.62]
[1728638119175,0.12502,142.13,142.12,11.1404]
[1728638119363,0.12502,142.13,142.12,7.62]
[1728638119565,2.0,142.14,142.12,7.62]
[1728638119773,2.0,142.14,142.13,7.62]
[1728638119963,2.0,142.14,142.12,7.62]
[1728638120169,2.0,142.14,142.12,11.1402]
[1728638120775,5.52,142.14,142.12,7.62]
[1728638121676,3.5204,142.13,142.11,7.62]
[1728638121875,2.0,142.14,142.11,7.62]
[1728638122076,2.0,142.14,142.13,7.62]
[1728638122277,2.0,142.14,142.13,11.1401]
[1728638122469,2.0,142.14,142.13,7.62]
[1728638122870,2.0,142.14,142.13,11.1401]
[1728638123872,2.0,142.14,142.13,3.5201]
[1728638124578,2.0,142.14,142.12,7.62]
[1728638125977,2.0,142.14,142.12,11.1403]
[1728638126475,5.5199,142.14,142.12,7.62]
[1728638127171,2.0,142.14,142.12,11.1404]
[1728638128467,2.0,142.14,142.13,11.1401]
[1728638131169,0.12518,142.15,142.13,11.1401]
[1728638131576,0.12518,142.15,142.14,7.62]
[1728638131777,2.12518,142.15,142.14,16.5999]
[1728638131983,2.12518,142.15,142.14,8.9799]
[1728638132175,2.12518,142.15,142.14,16.5999]
[1728638132380,0.12502,142.19,142.18,3.5189]
[1728638132684,0.12502,142.19,142.17,7.62]
[1728638133179,0.12502,142.19,142.07,0.12502]
[1728638133180,7.62,142.18,142.07,0.12502]
[1728638133372,11.1398,142.15,142.11,3.5205]
[1728638133577,7.62,142.15,142.1,7.62]
[1728638133979,7.62,142.15,142.11,3.5205]
[1728638134176,7.62,142.15,142.11,11.1405]
[1728638134481,7.62,142.15,142.09,3.5209]
[1728638134688,7.62,142.14,142.08,9.0316]
[1728638135782,7.62,142.14,142.08,12.5529]
[1728638136375,3.5207,142.11,142.08,12.5529]
[1728638138689,3.5209,142.1,142.08,7.62]
[1728638139182,3.5209,142.1,142.07,16.72652]
[1728638139576,3.5209,142.1,142.07,3.64652]
[1728638139782,3.5205,142.12,142.09,11.141]
[1728638139981,7.62,142.12,142.07,0.12502]
[1728638140275,3.521,142.1,142.07,11.26662]
[1728638140474,7.62,142.12,142.07,11.26662]
[1728638140677,39.17280739,142.21,142.11,7.62]
[1728638140878,39.17280739,142.21,142.07,0.12502]
[1728638140879,3.5184,142.2,142.17,11.1392]
[1728638141083,7.62,142.22,142.17,7.62]
[1728638141283,13.28,142.22,142.17,7.62]
[1728638141484,3.64382,142.19,142.17,7.62]
[1728638142286,0.12502,142.19,142.17,11.1391]
[1728638142487,0.12502,142.19,142.15,11.82]
[1728638142788,0.12502,142.19,142.16,3.5192]
[1728638144680,3.64372,142.19,142.15,15.3394]
[1728638144879,0.12502,142.19,142.15,11.82]
[1728638145886,3.5191,142.18,142.15,11.82]
[1728638146694,3.64372,142.19,142.15,15.3396]
[1728638147288,3.64372,142.19,142.15,11.82]
[1728638147491,3.64372,142.19,142.16,3.5194]
[1728638147882,0.12502,142.19,142.15,15.3396]
[1728638148082,3.5189,142.18,142.15,15.3396]
[1728638148387,0.12502,142.19,142.15,15.3396]
[1728638148588,3.64372,142.19,142.15,15.3396]
[1728638148892,0.12502,142.19,142.15,11.82]
[1728638149384,0.12502,142.19,142.17,11.82]
[1728638150086,0.12502,142.19,142.18,3.5189]
[1728638152292,5.64,142.24,142.17,11.82]
[1728638152492,5.64,142.24,142.2,15.3383]
[1728638152691,0.12502,142.25,142.2,11.82]
[1728638152991,5.76502,142.25,142.22,11.82]
[1728638153393,3.5176,142.24,142.22,11.82]
[1728638153689,3.5176,142.24,142.21,3.5181]
[1728638153887,3.5181,142.22,142.18,3.5188]
[1728638154297,3.5181,142.22,142.17,17.46]
[1728638154485,5.76502,142.25,142.19,11.82]
[1728638154688,0.12502,142.25,142.21,11.82]
[1728638154992,3.5177,142.23,142.2,3.5183]
[1728638155180,0.12502,142.25,142.19,11.82]
[1728638155584,3.64232,142.25,142.21,3.5179]
[1728638156192,0.12502,142.25,142.19,11.82]
[1728638156390,3.5176,142.24,142.21,3.5182]
[1728638157489,3.518,142.22,142.19,3.5186]
[1728638157689,0.12502,142.25,142.18,1.3745]
[1728638157891,0.12502,142.25,142.17,5.64]
[1728638158091,11.94502,142.25,142.2,3.5183]
[1728638158401,11.94502,142.25,142.17,5.64]
[1728638158692,3.5183,142.21,142.18,3.5189]
[1728638159293,11.94502,142.25,142.17,5.64]
[1728638159494,1.29343002,142.24,142.15,18.8529]
[1728638159797,3.5183,142.21,142.16,3.5192]
[1728638159991,5.64,142.23,142.15,7.0329]
[1728638160187,17.46,142.23,142.15,7.0329]
[1728638160986,5.64,142.23,142.15,7.0329]
[1728638161192,5.64,142.23,142.17,11.82]
[1728638161591,3.518,142.22,142.19,3.5185]
[1728638162194,5.64,142.23,142.21,3.5181]
[1728638162399,3.5175,142.24,142.21,3.5181]
[1728638163291,1.29340061,142.23,142.21,3.5181]
[1728638163900,1.29340061,142.23,142.17,11.82]
[1728638164101,1.29340061,142.22,142.17,11.82]
[1728638164399,1.29340061,142.21,142.18,7.57]
[1728638164605,0.12502,142.25,142.18,7.57]
[1728638164799,7.57,142.23,142.15,8.3834]
[1728638165102,7.57,142.21,142.16,7.57]
[1728638165493,3.5184,142.2,142.17,3.519]
[1728638166205,3.5184,142.2,142.18,3.5189]
[1728638166407,3.5189,142.18,142.15,7.0329]
[1728638166611,11.83,142.21,142.15,7.0329]
[1728638166809,1.29353391,142.2,142.16,3.5193]
[1728638167000,4.81203391,142.2,142.15,7.0329]
[1728638167301,5.64,142.22,142.15,7.0329]
[1728638167495,1.29353601,142.21,142.15,7.0329]
[1728638168700,13.12353601,142.21,142.15,5.64]
[1728638168895,1.29353601,142.2,142.15,5.64]
[1728638169100,1.29353601,142.2,142.12,17.69]
[1728638169697,1.29353601,142.2,142.15,3.5196]
[1728638169698,3.5191,142.18,142.15,3.5196]
[1728638170105,11.83,142.21,142.12,11.83]
[1728638170309,3.5193,142.17,142.14,3.5198]
[1728638170504,11.83,142.21,142.11,1.3646]
[1728638170707,11.83,142.17,142.1,2.7228]
[1728638170911,3.5199,142.14,142.1,4.8675]
[1728638171611,17.69,142.17,142.1,1.3467]
[1728638171809,3.5198,142.15,142.11,3.5205]
[1728638171999,17.69,142.17,142.1,1.3467]
[1728638172199,9.3793,142.17,142.14,3.5198]
[1728638173711,5.86,142.17,142.14,3.5198]
[1728638173913,7.2626,142.21,142.13,11.95502]
[1728638174128,346.86,142.24,142.15,11.83]
[1728638174315,1.4111,142.22,142.15,11.83]
[1728638174611,1.4111,142.22,142.19,3.5186]
[1728638174824,1.4111,142.22,142.15,11.83]
[1728638175106,4.929,142.22,142.18,3.5188]
[1728638176901,3.5183,142.21,142.17,3.5189]
[1728638177113,3.5183,142.21,142.15,11.83]
[1728638177911,3.5182,142.21,142.18,3.5188]
[1728638179211,3.5185,142.2,142.17,3.5191]
[1728638179915,3.5188,142.19,142.16,3.5194]
[1728638180113,11.83,142.21,142.13,0.12502]
[1728638180515,3.5193,142.17,142.14,3.5199]
[1728638181019,11.83,142.19,142.13,0.12502]
[1728638181213,3.519,142.18,142.15,3.5195]
[1728638182219,5.86,142.2,142.13,0.12502]
[1728638182411,3.5192,142.17,142.14,3.5198]
[1728638182610,5.86,142.2,142.14,3.5198]
[1728638183015,3.5192,142.17,142.14,3.5198]
[1728638183331,3.5192,142.17,142.15,3.5196]
[1728638184118,3.519,142.18,142.15,3.5196]
[1728638184616,3.5188,142.19,142.16,3.5194]
[1728638185020,5.86,142.2,142.13,0.12502]
[1728638186222,3.5189,142.18,142.15,3.5195]
[1728638188524,7.57,142.17,142.15,3.5195]
[1728638188824,7.57,142.16,142.13,0.12502]
[1728638189311,11.0894,142.16,142.13,3.64502]
[1728638189509,7.57,142.16,142.13,3.64502]
[1728638189725,7.57,142.16,142.13,0.12502]
[1728638189914,11.0897,142.15,142.13,0.12502]
[1728638190110,7.57,142.14,142.13,0.12502]
[1728638190627,11.0899,142.14,142.13,0.12502]
[1728638191516,7.57,142.14,142.13,0.12502]
[1728638192313,11.0899,142.14,142.13,0.12502]
[1728638192716,7.57,142.14,142.05,17.4735]
[1728638192924,7.57,142.11,142.09,3.5211]
[1728638193518,11.0905,142.12,142.09,3.5211]
[1728638194516,7.57,142.11,142.09,3.5211]
[1728638195220,7.57,142.1,142.07,3.64652]
[1728638195421,7.57,142.1,142.07,0.12502]
[1728638195818,7.57,142.11,142.07,7.69502]
[1728638196021,7.57,142.11,142.09,3.5211]
[1728638196223,7.57,142.11,142.07,7.69502]
[1728638196224,7.57,142.13,142.08,7.57]
[1728638196723,7.57,142.13,142.1,3.5207]
[1728638197625,2.731,142.15,142.09,7.57]
[1728638197927,2.731,142.15,142.12,3.5202]
[1728638197928,10.301,142.15,142.12,3.5202]
[1728638198130,10.301,142.15,142.09,7.57]
[1728638198330,7.57,142.14,142.09,7.57]
[1728638199322,7.57,142.14,142.11,3.5205]
[1728638200235,11.0899,142.14,142.11,3.5205]
[1728638201118,7.57,142.15,142.13,3.5199]
[1728638203841,1.41722,142.19,142.18,3.5189]
[1728638203842,0.12502,142.19,142.18,3.5189]
[1728638211539,0.12502,142.19,142.18,15.3389]
[1728638211848,0.12502,142.19,142.18,3.5189]
[1728638214546,0.12502,142.19,142.18,15.3389]
[1728638215640,0.12502,142.19,142.18,3.5189]
[1728638219759,0.12502,142.19,142.18,15.3389]
[1728638223860,0.12502,142.19,142.18,3.5189]
[1728638226556,0.12502,142.19,142.18,11.0789]
[1728638231367,0.12502,142.25,142.23,3.5176]
[1728638233564,0.12502,142.25,142.24,3.5174]
[1728638236360,0.12502,142.25,142.23,3.5176]
[1728638236658,0.12502,142.25,142.22,7.56]
[1728638237065,0.12502,142.25,142.23,3.5175]
[1728638239372,3.64222,142.25,142.23,3.5175]
[1728638239768,3.64222,142.25,142.22,3.5178]
[1728638241070,11.20222,142.25,142.22,3.5178]
[1728638243472,3.5176,142.24,142.21,3.5181]
[1728638245077,11.20232,142.25,142.22,3.5179]
[1728638246575,7.56,142.24,142.2,7.56]
[1728638247580,11.0775,142.24,142.21,3.518]
[1728638248676,3.5175,142.24,142.21,3.518]
[1728638250981,3.5175,142.24,142.2,7.56]
[1728638251176,3.5175,142.24,142.22,3.5179]
[1728638252382,0.12502,142.25,142.22,3.5179]
[1728638252683,3.64222,142.25,142.22,3.5179]
[1728638253080,3.64222,142.25,142.23,7.56]
[1728638253295,0.12502,142.31,142.25,23.35778]
[1728638253585,0.12502,142.31,142.25,5.62]
[1728638253586,7.56,142.29,142.25,5.62]
[1728638253780,7.56,142.29,142.24,5.62]
[1728638253981,7.56,142.29,142.24,13.18]
[1728638254187,7.56,142.29,142.26,3.5167]
[1728638254687,7.56,142.29,142.24,13.18]
[1728638255985,7.56,142.29,142.27,3.5166]
[1728638256390,11.20082,142.31,142.26,7.56]
[1728638256690,11.20072,142.31,142.26,7.56]
[1728638257082,3.64072,142.31,142.28,3.5163]
[1728638257283,11.20072,142.31,142.28,3.5163]
[1728638257581,11.20072,142.31,142.26,7.56]
[1728638257582,3.5159,142.3,142.26,7.56]
[1728638257783,3.5159,142.3,142.27,3.5166]
[1728638257987,3.5159,142.3,142.24,5.62]
[1728638257988,7.56,142.3,142.25,7.56]
[1728638258281,3.5162,142.29,142.26,3.5168]
[1728638258791,11.076,142.3,142.26,3.5168]
[1728638262388,7.56,142.3,142.26,3.5168]
[1728638262592,3.5162,142.29,142.26,3.5168]
[1728638265192,11.0762,142.29,142.26,3.5168]
[1728638268085,7.56,142.28,142.21,2.6799]
[1728638268387,11.0766,142.28,142.25,3.517]
[1728638270589,3.5168,142.27,142.24,3.5173]
[1728638270891,7.56,142.27,142.22,13.02]
[1728638271087,7.56,142.26,142.2,1.3497]
[1728638271295,3.5173,142.25,142.22,3.5179]
[1728638272297,3.5169,142.26,142.23,3.5175]
[1728638274492,3.5172,142.25,142.22,11.0778]
[1728638275301,11.077,142.26,142.23,3.5177]
[1728638275490,7.56,142.26,142.22,7.56]
[1728638276497,3.5172,142.25,142.22,11.0778]
[1728638277696,3.5171,142.26,142.23,3.5176]
[1728638279701,3.5172,142.25,142.22,11.0778]
[1728638279994,7.56,142.27,142.22,3.5178]
[1728638280201,7.56,142.26,142.2,7.56]
[1728638280498,3.5173,142.25,142.22,3.5179]
[1728638283697,3.5175,142.24,142.21,3.518]
[1728638283892,7.56,142.26,142.21,7.56]
[1728638284504,3.5173,142.25,142.22,3.5178]
[1728638286701,3.5173,142.25,142.22,11.0778]
[1728638287801,3.5171,142.26,142.23,3.5176]
[1728638288205,7.56,142.27,142.23,3.5176]
[1728638289103,11.0772,142.25,142.23,3.5176]
[1728638290699,11.0772,142.25,142.22,3.5178]
[1728638292598,7.56,142.24,142.19,0.12502]
[1728638292801,3.518,142.22,142.2,8.81266557]
[1728638292999,11.078,142.22,142.2,3.5182]
[1728638293201,7.56,142.22,142.2,3.5182]
[1728638293407,7.56,142.23,142.2,3.5182]
[1728638294299,11.0778,142.23,142.2,3.5182]
[1728638295100,7.56,142.21,142.19,0.12502]
[1728638295299,11.0784,142.2,142.19,0.12502]
[1728638295502,7.56,142.2,142.08,78.7193]
[1728638295806,7.56,142.2,142.14,9.97584768]
[1728638295807,7.56,142.15,142.14,9.97584768]
[1728638296001,7.56,142.15,142.14,5.30056325]
[1728638298309,7.56,142.16,142.14,3.5199]
[1728638298515,7.56,142.16,142.14,5.29744467]
[1728638298694,3.5189,142.18,142.13,0.12502]
[1728638298898,7.56,142.16,142.14,5.29740203]
[1728638299199,7.56,142.16,142.14,3.5199]
[1728638302905,7.56,142.15,142.13,0.12502]
[1728638303109,11.0799,142.14,142.13,0.12502]
[1728638303418,7.56,142.14,142.02,15.87073337]
[1728638303710,7.56,142.09,142.08,5.29269082]
[1728638305103,7.56,142.09,142.07,3.64662]
[1728638306109,5.38,142.13,142.07,3.64662]
[1728638306308,7.56,142.09,142.07,3.64662]
[1728638307708,7.56,142.08,142.07,3.64662]
[1728638308108,7.56,142.08,142.07,0.12502]
[1728638310310,7.56,142.08,142.03,3.5225]
[1728638310504,5.38,142.1,142.03,3.5225]
[1728638310505,7.56,142.05,142.03,3.5225]
[1728638311515,7.56,142.05,142.02,6.694]
[1728638312112,7.56,142.03,142.01,0.12502]
[1728638312320,7.56,142.02,142.01,0.12502]
[1728638312613,5.38,142.07,142.01,0.12502]
[1728638312920,7.56,142.02,142.01,0.12502]
[1728638313621,6.6806,142.07,142.01,0.12502]
[1728638313807,7.56,142.02,142.01,0.12502]
[1728638315906,7.56,142.02,142.01,3.64812]
[1728638316217,7.56,142.02,142.01,0.12502]
[1728638318016,7.56,142.02,141.98,3.5238]
[1728638318219,7.56,141.99,141.98,3.5238]
[1728638318426,7.56,141.99,141.96,8.9043]
[1728638318611,7.56,141.97,141.96,8.9043]